Cogmind - Beta 17.1 @@@ ROGUE MODE // 2026.09.03 @ 14:44:46 Player: Finn Result: Destroyed by D-53 Grenadier with Mini Grenade Launcher Performance ------------- Evolutions (1) 500 Regions Visited (3) 600 Robots Destroyed (10) 50 Value Destroyed (202) 202 Prototype IDs (0) 0 Alien Tech Used (0) 0 Bonus (0) 0 TOTAL SCORE: 1352 Bonus ------- None Cogmind --------- Core Integrity 0/400 Matter 288/300 Energy 100/100 System Corruption 0% Temperature Cool (0) Movement Core (100) Ox1 Location -9/Mines Parts ------- > --- POWER (1) -------- (None) > --- PROPULSION (2) --- (None) > --- UTILITY (4) ------ Small Storage Unit Signal Interpreter > --- WEAPON (2) ------- (None) > --- INVENTORY (8) ---- Ion Engine Light Ion Engine Light Ion Engine Wheel Heavy Explosive Trap Peak State ------------ > --- POWER ------------ Ion Engine > --- PROPULSION ------- Wheel Wheel > --- UTILITY ---------- Small Storage Unit Tractor Beam > --- WEAPON ----------- EM Pulse Gun Assault Rifle > --- INVENTORY -------- Ion Engine Light Treads Light Treads Aluminum Leg Aluminum Leg EM Pulse Gun [Rating: 7] Favorites ----------- Power Ion Engine Engine Ion Engine Propulsion Wheel Leg Aluminum Leg Wheel Wheel Utility Small Storage Unit Device Tractor Beam Storage Small Storage Unit Processor Signal Interpreter Protection Core Shielding Weapon Assault Rifle Energy Gun EM Pulse Gun Ballistic Gun Assault Rifle Build | -11 -10 -9 -9 ------- Run | Yrd Mat Mat Min Slots Evolved 2 | . . 2 . Power . | . . . . Propulsion . | . . . . Utility 2 | . . 2 . Weapon . | . . . . Parts Attached 13 | 7 4 2 . Power 1 | 1 . . . Engine 1 | 1 . . . Core . | . . . . Reactor . | . . . . Propulsion 5 | 2 2 1 . Treads . | . . . . Leg 1 | . . 1 . Wheel 4 | 2 2 . . Hover . | . . . . Flight . | . . . . Utility 4 | 2 1 1 . Device 1 | 1 . . . Storage 1 | 1 . . . Processor 1 | . 1 . . Hackware . | . . . . Protection 1 | . . 1 . Artifact . | . . . . Weapon 3 | 2 1 . . Energy Gun 2 | 1 1 . . Energy Cannon . | . . . . Ballistic Gun 1 | 1 . . . Ballistic Cannon . | . . . . Launcher . | . . . . Special Weapon . | . . . . Impact Weapon . | . . . . Slashing Weapon . | . . . . Piercing Weapon . | . . . . Special Melee Weapon . | . . . . Unidentified Prototypes . | . . . . Parts Lost 10 | . 4 6 . Power 1 | . . 1 . Propulsion 4 | . 1 3 . Utility 2 | . . 2 . Weapon 3 | . 3 . . Highest Loss Streak 6 | . 3 6 . To Critical Strikes . | . . . . Average Backups 6 | 4 7 4 4 Power 2 | . 2 3 3 Propulsion 3 | 3 3 1 1 Utility . | . 1 . . Weapon . | . . . . Tool/Special . | . . . . Unused Backups 6 | 1 2 . 3 Power 3 | . . . 3 Propulsion 3 | 1 2 . . Utility . | . . . . Weapon . | . . . . Tool/Special . | . . . . Average Slot Usage (%) 80 | . 92 66 22 Engine 11 | . 14 8 . Wheel 20 | . 24 16 . Device 8 | . 9 8 . Storage 13 | . 14 11 11 Processor 6 | . 4 11 11 Protection 1 | . . 10 . Energy Gun 7 | . 10 . . Ballistic Gun 9 | . 13 . . Peak Build Rating 7 | 7 7 7 2 Average Rating 5 | 5 6 6 2 On Entrance 3 | . 7 4 2 Avg Prop Armor Cover (%) . | . . . . Naked Turns . | . . . . Heaviest Build 15 | 15 15 12 5 Greatest Support 20 | 20 20 20 3 Greatest Overweight (x) 1 | . 1 1 1 Average Overweight (x) . | . . . 1 Largest Inventory Capacity 8 | 8 8 8 8 Average Capacity 7 | 7 8 8 8 Most Carried 8 | 8 8 7 5 Average Carried 6 | 5 7 4 4 Final Capacity 8 | 8 8 8 8 Final Carried 8 | 8 8 4 5 Class Distribution -------------------- 100% | Mutant Dominant Class ---------------- Mutant | -10/Materials Mutant | -9/Materials Mutant | -9/Mines Resources | -11 -10 -9 -9 ----------- Run | Yrd Mat Mat Min Matter Collected 394 | 294 100 . . Remotely 132 | 81 51 . . Salvage Created 337 | 124 213 . . Parts 21 | 6 15 . . Haulers Intercepted . | . . . . Recyclers Shooed . | . . . . Parts Field Recycled . | . . . . Retrieved Matter . | . . . . Parts Self-Destructed . | . . . . Prevented . | . . . . Parts Restored . | . . . . Kills | -11 -10 -9 -9 ------- Run | Yrd Mat Mat Min Combat Hostiles Destroyed 6 | . 6 . . Guns 6 | . 6 . . Classes Destroyed 5 | 2 3 . . Tunneler 2 | 2 . . . Recycler 1 | 1 . . . Watcher 1 | . 1 . . Swarmer 2 | . 2 . . Grunt 4 | . 4 . . Best Kill Streak 2 | 2 2 . . Combat Bots Only 2 | . 2 . . Max Kills in Single Turn 1 | 1 1 . . Gunslinging . | . . . . Exploded . | . . . . Melee . | . . . . Uniques/NPCs Destroyed . | . . . . Combat | -11 -10 -9 -9 -------- Run | Yrd Mat Mat Min Hostile Shots Fired 190 | . 84 103 3 Missed 55 | . 23 32 . Hits 135 | . 61 71 3 Projectile 135 | . 61 71 3 AOE 3 | . . . 3 Critical Strikes 1 | . . 1 . Actively Blocked 1 | . . 1 . Damage Taken 1383 | . 636 600 147 Core 657 | . 232 278 147 Absorbed by Shields . | . . . . Redirected to Shielding 51 | . . 51 . Core Remaining (%) 53 | 100 7 . . Volleys Fired 36 | 8 28 . . Largest 2 | 2 2 . . Hottest 60 | 60 60 . . Shots Fired 66 | 16 50 . . Gun 66 | 16 50 . . Cannon . | . . . . Launcher . | . . . . Special . | . . . . Kinetic 36 | 8 28 . . Thermal . | . . . . Explosive . | . . . . Electromagnetic 30 | 8 22 . . Robot Hit Streak 6 | 6 6 . . Robot Miss Streak 3 | 3 3 . . Penetration Max . | . . . . Secondary Targets . | . . . . Shots Hit Robots 42 | 9 33 . . Core Hits 15 | 4 11 . . Critical Kills 1 | . 1 . . Critical Parts Destroyed . | . . . . Critical Strikes 1 | . 1 . . Destroy 1 | . 1 . . Melee Attacks . | . . . . Impact . | . . . . Slashing . | . . . . Piercing . | . . . . Sneak Attacks . | . . . . Combat Hostiles . | . . . . Follow-up Attacks . | . . . . Damage Inflicted 658 | 153 505 . . Guns 556 | 108 448 . . Cannons . | . . . . Explosions 88 | 45 43 . . Melee . | . . . . Ramming 14 | . 14 . . Kinetic 265 | 44 221 . . Thermal 88 | 45 43 . . Explosive . | . . . . Electromagnetic 291 | 64 227 . . Impact . | . . . . Slashing . | . . . . Piercing . | . . . . Highest Corruption . | . . . . Average Corruption . | . . . . Corruption Purged . | . . . . Corruption Blocked . | . . . . Overload Shots . | . . . . Overflow Damage . | . . . . Projectiles . | . . . . Explosions . | . . . . Melee . | . . . . Knockbacks . | . . . . Impact . | . . . . Kinetic . | . . . . Secondary . | . . . . Self-Inflicted Damage 33 | . 33 . . Shots 1 | . 1 . . Rammed 1 | . 1 . . Targets Rammed 1 | . 1 . . Kicked . | . . . . Crushed . | . . . . Highest Temperature 66 | . 66 . . Average Temperature 29 | . 29 . . Received Heat Transfer 270 | . 234 36 . Siege Activations . | . . . . Martial Activations . | . . . . Shielding Activations . | . . . . Robots Disrupted . | . . . . Combat Hostiles . | . . . . Robots Corrupted . | . . . . Combat Hostiles . | . . . . Parts Fried . | . . . . Impact Corruptions . | . . . . Robots Melted . | . . . . Combat Hostiles . | . . . . Parts Melted . | . . . . Heat Transferred 50 | 50 . . . Parts Sabotaged . | . . . . Parts Stolen . | . . . . Parts Stripped . | . . . . Power Chain Reactions 2 | 1 1 . . Alert | -11 -10 -9 -9 ------- Run | Yrd Mat Mat Min Maximum Alert Level . | . . . . Low Security (%) 100 | 100 100 100 100 Level 1 . | . . . . Level 2 . | . . . . Level 3 . | . . . . Level 4 . | . . . . Level 5 . | . . . . High Security . | . . . . Max Security . | . . . . Peak Influence 58 | 10 58 15 5 Initial 5 | . . . 5 Average 13 | 1 18 . . Influence Increases 272 | 15 242 15 . Destroy 0b10 Robot/C 120 | . 120 . . Destroy 0b10 Robot/NC 20 | 15 5 . . Destroy Leader 22 | . 22 . . Successful Hack 5 | . 5 . . Disable Machine 15 | . 15 . . Partial Spotted 15 | . 15 . . Lose Combat Pursuer 75 | . 60 15 . Influence Decreases 272 | 15 242 . 15 Entered New Map 10 | . . . 10 Time Decay 222 | 15 202 . 5 Lost Part 40 | . 40 . . Squads Dispatched 4 | . 3 1 . Investigation 2 | . 1 1 . Extermination . | . . . . Reinforcement 2 | . 2 . . Assault . | . . . . Garrison . | . . . . Intercept . | . . . . Searches Triggered . | . . . . Construction Impeded . | . . . . Haulers Reinforced . | . . . . Active Scanning Responses . | . . . . Cargo Convoy Interrupts . | . . . . Stealth | -11 -10 -9 -9 --------- Run | Yrd Mat Mat Min Distress Signals 2 | . 1 1 . Communications Jammed . | . . . . Distress Signals . | . . . . Times Spotted 30 | . 17 11 2 Peak Tracking Total 11 | . 4 11 2 Tactical Retreats 3 | . 2 1 . Traps | -11 -10 -9 -9 ------- Run | Yrd Mat Mat Min Traps Triggered 2 | . 1 1 . Indirectly . | . . . . Trap Hack Attempts . | . . . . Triggered . | . . . . Disarmed . | . . . . Reprogrammed . | . . . . Reused . | . . . . Traps Extracted . | . . . . Installed . | . . . . Triggered . | . . . . Most Traps Carried 1 | . . . 1 Machines | -11 -10 -9 -9 ---------- Run | Yrd Mat Mat Min Machines Disabled 1 | . 1 . . Max in Single Turn 1 | . 1 . . Machines Repaired . | . . . . Machines Dismantled . | . . . . Machines Sabotaged . | . . . . Overloaded Fab Kills . | . . . . Hacking | -11 -10 -9 -9 --------- Run | Yrd Mat Mat Min Machines Accessed 2 | . 2 . . Terminals 1 | . 1 . . Fabricators . | . . . . Repair Stations . | . . . . Recycling Units 1 | . 1 . . Scanalyzers . | . . . . Garrison Access . | . . . . Total Hacks 4 | . 4 . . Successful 2 | . 2 . . Failed 2 | . 2 . . Catastrophic . | . . . . Database Lockouts . | . . . . Manual . | . . . . Terminals 1 | . 1 . . Fabricators . | . . . . Repair Stations . | . . . . Recycling Units 3 | . 3 . . Scanalyzers . | . . . . Garrison Access . | . . . . Terminal Hacks 1 | . 1 . . Zone Layout 1 | . 1 . . Fabricator Hacks . | . . . . Repair Station Hacks . | . . . . Recycling Unit Hacks 1 | . 1 . . Retrieve Components 1 | . 1 . . Scanalyzer . | . . . . Garrison Access Hacks . | . . . . Unauthorized Hacks . | . . . . Terminals . | . . . . Fabricators . | . . . . Repair Stations . | . . . . Recycling Units . | . . . . Scanalyzers . | . . . . Garrison Access . | . . . . Data Cores Recovered . | . . . . Used . | . . . . Hacking Detections 1 | . 1 . . Full Trace Events . | . . . . Feedback Events . | . . . . Feedback Blocked . | . . . . Robot Schematics Acquired . | . . . . Robots Built . | . . . . Authchips . | . . . . Time . | . . . . Total Robot Build Rating . | . . . . Part Schematics Acquired . | . . . . Parts Built . | . . . . Authchips . | . . . . Time . | . . . . Total Part Build Rating . | . . . . Part Studies Acquired . | . . . . Parts Repaired . | . . . . Time . | . . . . Parts Recycled . | . . . . Recycled Matter . | . . . . Retrieved Matter . | . . . . Retrieved Components 9 | . 9 . . Parts Scanalyzed . | . . . . Part Schematics Acquired . | . . . . Parts Damaged . | . . . . Bothacking | -11 -10 -9 -9 ------------ Run | Yrd Mat Mat Min Used RIF Installer . | . . . . Robots Hacked . | . . . . Non-combat . | . . . . Combat . | . . . . Robot Hacks Applied . | . . . . Relay Couplers Released . | . . . . Fabnet Peak Effective % . | . . . . Robots Rewired . | . . . . Allies Hacked . | . . . . Hacks Repelled . | . . . . Allies | -11 -10 -9 -9 -------- Run | Yrd Mat Mat Min Total Allies . | . . . . Largest Group . | . . . . Highest-Rated Group . | . . . . Highest-Rated Ally . | . . . . Total Orders . | . . . . Ally Attacks . | . . . . Total Damage . | . . . . Kills . | . . . . Allies Corrupted . | . . . . Allies Melted . | . . . . Intel | -11 -10 -9 -9 ------- Run | Yrd Mat Mat Min Active Infowar (turns) . | . . . . Robot Analysis Total . | . . . . Derelict Logs Recovered . | . . . . Drone Launches . | . . . . Drone Recoveries . | . . . . Exploration | -11 -10 -9 -9 ------------- Run | Yrd Mat Mat Min Turns Passed 1164 | 87 796 162 119 Spaces Moved 777 | 58 441 178 100 Core 144 | 18 . 26 100 Treads . | . . . . Legs 7 | . . 7 . Wheels 626 | 40 441 145 . Hover . | . . . . Flight . | . . . . Fastest Speed 50 | 50 80 80 100 Average Speed 85 | 70 84 84 100 Slowest Speed 120 | 80 95 120 100 Overloaded Moves . | . . . . Propulsion Burnouts . | . . . . Robots Hopped . | . . . . Potential Cave-ins . | . . . . Cave-ins Triggered . | . . . . Exploration Rate (%) 24 | 3 53 24 18 Regions Visited 3 Branch Regions 1 Pre-discovered Areas . | . . . . Known Exits Taken 2 | . 1 1 . Unknown Exits Taken 1 | 1 . . . Scrap Searched . | . . . . Spaces Dug . | . . . . Terrain Destroyed . | . . . . Melee . | . . . . Projectile . | . . . . AOE . | . . . . Terrain Rammed . | . . . . Walls Destroyed . | . . . . Machines Disabled . | . . . . Actions | -11 -10 -9 -9 --------- Run | Yrd Mat Mat Min Total 1206 | 87 811 189 119 Wait 357 | . 333 8 16 Move 774 | 57 440 177 100 Hop . | . . . . Pick Up 19 | 14 3 . 2 Fast Attach 2 | 2 . . . Attach 10 | 5 1 4 . Detach . | . . . . Swap 3 | . 3 . . Drop 4 | 1 2 . 1 Fire 36 | 8 28 . . Melee . | . . . . Ram 1 | . 1 . . Kick . | . . . . Crush . | . . . . Escape Stasis . | . . . . Rewire . | . . . . Trap . | . . . . Miscellaneous . | . . . . Route ------- -11/Scrapyard -10/Materials (discovered 2 exits: *Mat / [*Sub]) -9/Materials -9/Mines (discovered 1 exit: [*Mat]) History --------- Turn | Location | Event 5 | -11/Scrapyard | Discovered new exit (range 16) 88 | -11/Scrapyard | Entered Materials 311 | -10/Materials | Build established: Mutant 703 | -10/Materials | Core integrity fell below 50% 729 | -10/Materials | Lost 3 parts (1n2w) 754 | -10/Materials | Discovered new exit (range 5) 759 | -10/Materials | Identified exit to Materials 826 | -10/Materials | Discovered new exit (range 8) 875 | -10/Materials | Core integrity fell below 20% 884 | -10/Materials | Entered another Materials area 884 | -9/Materials | Evolved 2 slots: Utility x2 1033 | -9/Materials | Core integrity fell below 50% 1038 | -9/Materials | Discovered new exit (range 9) 1045 | -9/Materials | Identified exit to Mines 1046 | -9/Materials | Entered Mines 1069 | -9/Mines | Lost 6 parts (1p3n2u) 1140 | -9/Mines | Discovered new exit (range 6) 1143 | -9/Mines | Assembled infested the area 1147 | -9/Mines | Found a hidden stash of uninstalled traps 1156 | -9/Mines | Core integrity fell below 20% 1165 | -9/Mines | Destroyed by D-53 Grenadier with Mini Grenade Launcher Last Messages --------------- GOAL=ESCAPE Something is scanning the area. 01047_ K-01 Serf collects debris. 01139_ T-07 Excavator is excavating. 01140_ EXIT=FOUND 01141_ A derelict emerges from the shadows: "What are you doing alone down here?" 01143_ ALERT: Infestation in the mines, dispatching Demolisher response squad. 01147_ A stash of uninstalled traps is collected here! 01149_ Acquired Heavy Explosive Trap. 01150_ Dropped Heavy Explosive Trap. 01153_ Acquired Heavy Explosive Trap. 01155_ K-01 Serf destroyed. 01158_ K-01 Serf collects debris. 01159_ K-01 Serf destroyed. 01159_ R-06 Scavenger collects Wheel. 01159_ R-06 Scavenger collects Lgt. Ion Engine. 01164_ R-06 Scavenger collects Med. Matter Pod. Map ----- +----------------------------------------------------+ | ?????????????????????????????????????????????????? | | ?????????????????????????????????????????????????? | | ?????????????????????????????????????????????????? | | ?????????????????????????????????????????????????? | | ?????????????????????????????????????????????????? | | ?????????????????????????????????????????##??????? | | ????????????????????????????????????????# #?????? | | ???????????????????????????????????????? ?????? | | ???????????????????????????????????????? ?????? | | ???????????????????????????????????????? ?????? | | ???????????????????????????????????????? ??????? | | ???????????????????????????????????????? ?????## | | ???????????????????#?#????????????????## ?????# | | ??????????????????## #??????????????## #????# | | ??????????????????? #?????????????# #?#### | | ???????????????????? #####???????? < #?# | | ???????????????????? ? #????????? ??# | | ??????????????????? """ ?# #?#####???? ???# | | ???????????????????# """ ## ### ##???# ##### | | ??????????????????## """ ##### # "" | | ?????????????????## """ rr d d ### "" | | ????????????????## & #?# "" | | ????????????????# ##### #?# | | ????????????????# ### #???# #?##### | | ???????????????????????## #?????# | | ???????????????????????##@ #### #### ##?????# | | ???????????????????????# #??######???? #??????# | | ???????????????????????# #??????????? ???????# | | ???????????????????????## #??????????? ???????# | | ????????????????????????## #??????????? ??????## | | ?????????????????????????#####?????????? ??????# | | ???????????????????????????????????????? ??????# | | ????????????????????????????????????????#???????# | | ????????????????????????????????????????????????# | | ????????????????????????????????????????????????# | | ????????????????????????????????????????????????# | | ????????????????????????????????????????????????# | | ????????????????????????????????????????????????## | | ?????????????????????????????????????????????????? | | ?????????????????????????????????????????????????? | | ?????????????????????????????????????????????????? | | | | | | | | | | | | | | | | | | | +----------------------------------------------------+ Best States ------------- Heat Dissipation 28 Energy Generation 10 Energy Capacity 250 Matter Stores 300 Matter Capacity 300 Sight Range 16 Terrain Scan Density 10 Core Shielding 20 Evasion (%) 50 Item Schematics ----------------- None Robot Schematics ------------------ None Fabricated ------------ Nothing Repaired ---------- Nothing Studied --------- None Alien Tech Used ----------------- None Achievements -------------- None Challenges ------------ None Game ------ Seed BlanketLinearReprisal Manual? 0 Play Time 00:08:29 Cumulative 27.7 hours Start 2026.09.03 @ 14:36:58 End 2026.09.03 @ 14:44:46 Sessions 1 Manual Loads 0 Difficulty Rogue Special Mode None Game No. 66 Rogue 49 Adventurer 15 Explorer 2 Win Type - Total 0 Types 0/0/0/0/0/0/0/0/0/0 Lore% 24 Gallery% 23 Achievement% 20 Wizard Run 0 Options --------- Layout 1 ASCII 0 Keyboard 0 Movement Mouse Keybinds 0 Fullscreen 1 Font 24/Smallcaps Map View 50x35 Zoom Use 0% Tactical HUD 1 Map Filters NONE Filters NONE Steam 1 RUN: 4818f4b4-99ac-4bfc-ad5e-9b54982598be